bitfinex/quotes_SOLUSD_20211001
["timestamp","ask_amount","ask_price","bid_price","bid_amount"]
[1633084902139,980.5678224,148.43,148.23,0.0212976]
[1633084902336,980.5678224,148.43,148.24,2.31]
[1633084902539,980.5678224,148.43,148.24,24.25097624]
[1633084902737,980.5678224,148.43,148.24,48.64521583]
[1633084902938,980.5678224,148.43,148.25,32.01252959]
[1633084903138,980.5678224,148.43,148.29,0.0212976]
[1633084903337,980.5678224,148.43,148.3,2.31]
[1633084903535,980.5678224,148.43,148.42,57.8]
[1633084903735,980.5678224,148.43,148.42,60.11]
[1633084904736,923.7778224,148.43,148.42,60.11]
[1633084905142,923.7778224,148.43,148.42,115.11]
[1633084905337,922.7678224,148.43,148.42,142.3958007]
[1633084905938,869.8141224,148.43,148.42,142.3958007]
[1633084906338,869.8141224,148.43,148.42,150.0266583]
[1633084906544,50.07564993,148.43,148.42,173.65364841]
[1633084906739,26.9,148.5,148.43,0.0212976]
[1633084906940,26.9,148.5,148.49,57.8]
[1633084907145,26.9,148.5,148.49,52.11]
[1633084907340,26.9,148.5,148.49,73.88575778]
[1633084907741,25.449,148.5,148.49,73.88575778]
[1633084908145,25.449,148.5,148.49,95.57502566]
[1633084908542,25.449,148.5,148.49,73.88575778]
[1633084908743,25.449,148.5,148.49,101.90997344]
[1633084908941,20.49352255,148.52,148.49,101.90997344]
[1633084909148,0.07,148.57,148.51,57.8]
[1633084909344,0.07,148.57,148.56,57.8]
[1633084909543,0.07,148.57,148.56,60.11]
[1633084909744,0.07,148.57,148.56,90.38680223]
[1633084909942,0.06992764,148.72,148.56,111.38844234]
[1633084910144,0.06992764,148.72,148.71,57.8]
[1633084910344,0.06992764,148.72,148.71,60.11]
[1633084910542,0.06992764,148.72,148.71,55.11]
[1633084910744,0.06992764,148.72,148.56,7.5836]
[1633084910945,0.06992764,148.72,148.65,23.41542445]
[1633084911142,0.06992764,148.72,148.52,9.48657611]
[1633084911143,0.06992764,148.72,148.66,2.31]
[1633084911343,0.06992764,148.72,148.67,0.74]
[1633084911544,0.06992764,148.72,148.58,26.52098]
[1633084911545,83.0,148.71,148.58,26.52098]
[1633084911750,83.0,148.71,148.59,2.31]
[1633084912144,31.97760484,148.7,148.59,2.31]
[1633084912345,31.97760484,148.7,148.51,28.32581334]
[1633084912545,31.99848484,148.7,148.51,28.32581334]
[1633084912947,28.32581334,148.51,148.49,45.22058093]
[1633084913147,22.66808657,148.53,148.49,0.0212976]
[1633084913347,2.5754521,148.66,148.52,57.8]
[1633084913546,2.5963321,148.66,148.59,57.8]
[1633084913747,1.01792448,148.63,148.45,0.0212976]
[1633084913945,2.4331722,148.59,148.44,0.0212976]
[1633084914949,26.98368284,148.58,148.45,2.31]
[1633084915147,34.83580284,148.58,148.45,2.31]
[1633084915345,102.0,148.57,148.42,28.80211491]
[1633084915548,102.0,148.57,148.42,2.31]
[1633084915747,77.3726976,148.56,148.43,2.31]
[1633084915948,2.31,148.41,148.31,45.22016333]
[1633084916146,2.31,148.41,148.33,57.8]
[1633084916951,65.251649,148.4,148.33,57.8]
[1633084917148,0.0212976,148.38,148.33,57.8]
[1633084917346,23.48404798,148.38,148.31,52.0]
[1633084917546,102.0,148.37,148.27,37.21981244]
[1633084917747,102.0,148.37,148.22,29.23345582]
[1633084917748,2.48910164,148.36,148.18,0.02088]
[1633084917948,2.48910164,148.36,148.02,112.0231]
[1633084917949,0.0212976,148.35,148.23,35.33069577]
[1633084918146,73.3519,148.37,148.13,31.52610133]
[1633084918345,2.31,148.4,148.14,2.31]
[1633084918548,2.31,148.4,148.15,0.0212976]
[1633084918549,0.02088,148.39,148.15,0.0212976]
[1633084918745,2.33088,148.39,148.16,2.31]
[1633084918948,0.02088,148.38,148.16,2.31]
[1633084919148,2.31,148.37,148.16,61.62398277]
[1633084919348,2.52772896,148.33,148.16,35.92342455]
[1633084919549,2.31,148.32,148.16,2.31]
[1633084919745,24.61528587,148.32,148.13,0.0212976]
[1633084919947,24.61528587,148.32,148.13,2.31]
[1633084920148,24.61528587,148.32,148.13,2.3312976]
[1633084920350,2.44437065,148.25,148.13,34.55471786]
[1633084920549,28.84044983,148.25,148.14,29.61400898]
[1633084920750,2.31,148.26,148.09,38.26911395]
[1633084920947,102.0,148.25,148.11,32.19088452]
[1633084921146,102.0,148.25,148.15,33.72022506]
[1633084921348,102.0,148.25,148.14,6.009e-05]
[1633084921547,102.0,148.25,148.16,26.28202597]
[1633084921751,128.82948861,148.25,148.17,3.80202213]
[1633084921951,102.0,148.25,148.14,2.31]
[1633084922152,102.0,148.25,148.05,0.0212976]
[1633084922350,114.4504,148.24,148.03,2.3312976]
[1633084922548,76.4504,148.24,148.09,0.0212976]
[1633084922749,2.31,148.3,148.1,2.31]
[1633084922951,2.31,148.3,148.11,2.3312976]
[1633084923150,25.25897438,148.29,148.12,2.3312976]
[1633084923352,33.11109438,148.29,148.13,0.0212976]
[1633084923554,2.31,148.28,148.12,2.3312976]
[1633084923751,7.85212,148.27,148.12,0.0212976]
[1633084923949,2.31,148.26,148.1,0.0212976]
[1633084924151,26.75093048,148.25,148.1,2.31]
[1633084924352,26.75093048,148.25,148.11,3.34266084]
[1633084924551,2.31,148.24,148.11,3.34266084]
[1633084924756,2.31,148.28,148.11,2.31]
[1633084925549,10.16212,148.28,148.12,20.75942548]
[1633084925750,10.16212,148.28,148.13,2.3312976]
[1633084925951,7.85212,148.28,148.14,0.0212976]
[1633084926151,7.85212,148.28,148.15,2.31]
[1633084926354,26.13855878,148.27,148.16,0.0212976]
[1633084926554,7.85212,148.26,148.17,2.31]
[1633084926751,82.36992,148.26,148.18,0.0212976]
[1633084926951,82.36992,148.26,148.16,0.02088]
[1633084927149,82.36992,148.26,148.07,45.19928333]
[1633084927150,82.36992,148.26,148.1,0.02088]
[1633084927354,7.85212,148.26,148.11,2.31]
[1633084927550,7.85212,148.26,148.12,2.31]
[1633084927551,102.0212976,148.25,148.12,2.31]
[1633084927752,7.8734176,148.24,148.13,2.31]
[1633084927951,7.85212,148.24,148.14,2.31]
[1633084928352,0.0212976,148.23,148.11,2.31]
[1633084928556,29.87088935,148.23,148.11,2.31]
[1633084928755,7.8734176,148.22,148.11,2.31]
[1633084928953,73.5789,148.21,148.11,2.31]
[1633084929156,7.85212,148.2,148.11,0.0001]
[1633084929360,7.85212,148.2,148.04,1.24880843]
[1633084929555,7.85212,148.2,148.05,2.31]
[1633084929556,24.70440917,148.19,148.05,2.31]
[1633084929755,0.0212976,148.18,148.05,2.31]
[1633084929958,7.8734176,148.18,148.05,2.31]
[1633084930155,0.0212976,148.17,148.05,2.31]
[1633084930355,0.02088,148.17,148.05,2.31]
[1633084931155,0.02088,148.17,148.05,31.37786992]
[1633084931358,0.02088,148.17,148.05,2.31]
[1633084931755,0.02088,148.17,148.05,28.27231436]
[1633084932156,0.02088,148.21,148.05,28.27231436]
[1633084932360,0.02088,148.21,148.06,26.47541595]
[1633084932561,2.31,148.25,148.1,2.47572628]
[1633084932761,0.02088,148.23,148.11,2.31]
[1633084933160,30.01845097,148.28,148.11,2.31]
[1633084933359,30.01845097,148.28,148.11,27.36928261]
[1633084933761,30.01845097,148.28,148.18,0.0412976]
[1633084933960,30.01845097,148.28,148.19,2.31]
[1633084934165,2.31,148.35,148.2,2.31]
[1633084934361,4.79461316,148.47,148.2,2.31]
[1633084934362,2.31,148.38,148.21,2.78547522]
[1633084934560,2.31,148.38,148.21,43.09547522]
[1633084934761,10.20000001,148.49,148.22,0.0412976]
[1633084934963,2.31,148.48,148.24,0.0412976]
[1633084935164,2.31,148.48,148.24,2.3512976]
[1633084935363,2.31,148.48,148.21,40.78547522]
[1633084935364,2.44548509,148.44,148.32,0.0412976]
[1633084935564,10.20000001,148.49,148.32,0.0412976]
[1633084935565,24.81632542,148.43,148.32,0.0412976]
[1633084935763,10.20000001,148.49,148.25,2.1600189]
[1633084935962,12.36000001,148.49,148.29,0.02088]
[1633084936161,36.36115811,148.46,148.26,2.16]
[1633084936361,36.36115811,148.46,148.08,133.3465]
[1633084936362,2.58795343,148.39,148.22,2.16]
[1633084936562,38.0,148.37,148.18,2.16]
[1633084936764,2.4911657,148.35,148.18,2.16]
[1633084936963,0.0212976,148.32,148.18,2.16]
[1633084937162,117.6819976,148.34,148.11,0.02088]
[1633084937363,0.0421776,148.32,148.12,2.16]
[1633084937562,12.57826599,148.31,148.13,2.16]
[1633084937765,7.85212,148.31,148.13,2.16]
[1633084937963,0.0421776,148.3,148.13,2.16]
[1633084938763,0.0421776,148.3,148.13,36.18455784]
[1633084939162,7.85212,148.29,148.13,2.16]
[1633084939363,7.8942976,148.29,148.13,2.16]
[1633084939564,7.85212,148.29,148.13,2.16]
[1633084939767,0.0421776,148.28,148.13,2.16]
[1633084939964,0.0421776,148.28,148.13,33.60189117]
[1633084940376,0.0421776,148.31,148.14,29.53306907]
[1633084940568,0.0421776,148.31,148.15,2.16]
[1633084940764,72.6345,148.35,148.15,28.04078006]
[1633084940765,0.0421776,148.34,148.15,28.04078006]
[1633084941164,0.0421776,148.31,148.16,43.88029635]
[1633084941366,0.0421776,148.31,148.17,2.16]
[1633084941566,0.0421776,148.31,148.18,2.16]
[1633084941768,0.0421776,148.33,148.19,2.16]
[1633084941965,0.0421776,148.33,148.18,2.16]
[1633084942167,0.0421776,148.33,148.18,28.04078006]
[1633084942368,0.0421776,148.33,148.19,3.93003246]
[1633084942766,0.0421776,148.34,148.19,31.68192363]
[1633084942969,0.0421776,148.34,148.19,27.75189117]
[1633084943167,72.6345,148.35,148.19,2.16]
[1633084943967,27.15432738,148.34,148.14,2.16]
[1633084944169,2.46687032,148.3,148.14,2.16]
[1633084944367,0.0421776,148.29,148.14,2.16]
[1633084944569,64.0,148.26,148.05,28.9715059]
[1633084944769,102.0,148.23,148.0,53.93]
[1633084944969,0.0421776,148.21,148.01,2.16]
[1633084945368,0.0421776,148.18,148.01,2.16]
[1633084945770,0.0421776,148.15,148.01,2.16]
[1633084946168,0.0421776,148.19,148.01,27.30729709]
[1633084946569,0.0421776,148.2,148.01,2.16]
[1633084946969,0.0421776,148.18,148.01,2.16]
[1633084947168,114.1701,148.21,148.01,2.16]
[1633084947371,0.0421776,148.15,148.01,2.16]
[1633084947568,0.0421776,148.15,148.13,0.273]
[1633084947769,17.38760615,148.26,148.13,0.273]
[1633084947770,0.0421776,148.21,148.13,0.273]
[1633084947970,0.0421776,148.23,148.13,0.273]
[1633084949980,0.0421776,148.24,148.13,0.273]
[1633084950984,2.16,148.23,148.13,0.273]
[1633084951196,0.0421776,148.17,148.13,0.273]
[1633084951397,0.0421776,148.21,148.13,0.273]
[1633084951597,0.0421776,148.24,148.13,0.273]
[1633084951795,79.6207,148.36,148.13,0.273]
[1633084951796,0.0421776,148.29,148.13,0.273]
[1633084952200,0.0421776,148.33,148.14,28.59719668]
[1633084952397,0.0421776,148.35,148.15,25.81231666]
[1633084952601,0.0421776,148.35,148.16,2.16]
[1633084952797,0.0421776,148.35,148.16,28.66941891]
[1633084952998,79.6207,148.36,148.17,8.92851537]
[1633084953198,29.1044,148.36,148.19,19.39263455]
[1633084953409,0.0421776,148.39,148.19,21.55263455]
[1633084953598,0.0421776,148.43,148.21,8.92624212]
[1633084953798,0.0421776,148.43,148.22,29.28478065]
[1633084953998,427.6392896,148.44,148.23,2.16]
[1633084954397,427.6392896,148.44,148.24,8.9244629]
[1633084954599,427.6392896,148.44,148.25,25.52870571]
[1633084955004,427.6392896,148.44,148.25,2.16]
[1633084955208,457.04207811,148.44,148.25,2.16]
[1633084955405,2.4624891,148.38,148.13,1.50626883]
[1633084955604,2.4624891,148.38,148.15,53.93]
[1633084955801,173.2066,148.42,148.16,2.16]
[1633084956004,191.31922103,148.42,148.17,27.32240845]
[1633084956201,78.98,148.41,148.18,2.16]
[1633084956403,0.0421776,148.38,148.18,2.16]
[1633084956602,2.45577261,148.36,148.18,0.0001]
[1633084956802,2.5254968,148.31,148.18,0.0001]
[1633084957003,0.0421776,148.3,148.18,0.0001]
[1633084957405,19.50766565,148.29,148.14,2.16]
[1633084957603,19.50766565,148.29,148.15,27.23348323]
[1633084957803,0.0421776,148.28,148.15,27.23348323]
[1633084958004,110.2771,148.4,148.16,2.16]
[1633084958203,0.0421776,148.27,148.16,31.99338412]
[1633084958403,108.1171,148.4,148.17,28.18222865]
[1633084958606,0.0421776,148.39,148.18,25.45198875]
[1633084959205,0.0421776,148.39,148.18,53.6342174]
[1633084959605,0.0421776,148.41,148.19,25.7206024]
[1633084959808,0.0421776,148.46,148.24,2.44919859]
[1633084960003,0.0421776,148.46,148.25,2.16]
[1633084960204,0.0421776,148.46,148.25,56.06283105]
[1633084960406,2.16,148.51,148.26,29.32059209]
[1633084960605,0.02088,148.5,148.27,103.16]
[1633084960804,0.02088,148.5,148.27,156.78777693]
[1633084961004,0.02088,148.5,148.28,53.46400883]
[1633084961206,0.02088,148.56,148.29,2.18088]
[1633084961404,0.02088,148.56,148.3,26.92028737]
[1633084961608,0.02088,148.56,148.31,2.16]
[1633084961804,2.40276579,148.54,148.32,0.02088]
[1633084962003,2.40276579,148.54,148.33,2.16]
[1633084962204,2.5993862,148.49,148.34,23.70032211]
[1633084962404,44.52880417,148.53,148.34,23.70032211]
[1633084962602,0.02088,148.52,148.34,23.67944211]
[1633084962805,0.02088,148.53,148.34,23.67944211]
[1633084963006,2.16,148.52,148.29,33.27517309]
[1633084963203,27.22374962,148.52,148.28,2.16]
[1633084963403,2.43374356,148.45,148.3,0.02088]
[1633084963604,2.43374356,148.45,148.16,1.30703959]
[1633084963807,2.43374356,148.45,148.13,0.273]
[1633084963808,2.51153182,148.41,148.17,2.18088]
[1633084964004,25.08462962,148.44,148.18,2.18088]
[1633084964005,0.02088,148.4,148.18,2.18088]
[1633084964204,16.78756108,148.41,148.19,0.02088]
[1633084964407,2.50210197,148.38,148.2,2.16]
[1633084964607,118.790158,148.37,148.2,32.43607854]
[1633084964805,2.44977276,148.32,148.2,2.16]
[1633084965005,118.790158,148.31,148.2,2.16]
[1633084965208,0.02088,148.3,148.13,2.433]
[1633084965408,0.02088,148.31,148.13,2.433]
[1633084965608,16.76322219,148.29,148.13,2.433]
[1633084965806,0.02088,148.28,148.14,26.54514591]
[1633084966606,118.769278,148.27,148.13,0.273]
[1633084966823,10.30833304,148.26,148.13,0.273]
[1633084967010,0.02088,148.24,148.13,0.273]
[1633084967408,0.02088,148.2,148.13,0.273]
[1633084968009,0.02088,148.24,148.13,0.273]
[1633084968610,7.873,148.24,148.13,0.273]
[1633084968809,7.85212,148.24,148.13,0.273]
[1633084969013,7.873,148.24,148.13,0.273]
[1633084969410,0.02088,148.23,148.13,0.273]
[1633084970209,0.02088,148.24,148.13,0.273]
[1633084970410,0.02088,148.28,148.13,0.273]
[1633084970613,75.5499,148.31,148.13,31.23289531]
[1633084970810,53.93,148.49,148.31,75.50814]
[1633084971011,1.94747001,148.51,148.31,75.50814]
[1633084971012,0.02088,148.37,148.31,75.50814]
[1633084971211,301.074929,148.36,148.31,75.50814]
[1633084971410,7.62694415,148.36,148.31,71.43814]
[1633084971612,73.9092,148.51,148.19,29.49415268]
[1633084971613,118.544367,148.35,148.22,495.20076365]
[1633084971810,23.68501476,148.38,148.23,0.0421776]
[1633084972011,23.68501476,148.38,148.22,495.20076365]
[1633084972212,25.84501476,148.38,148.22,472.54846292]
[1633084972410,115.99805468,148.37,148.22,472.54846292]
[1633084972616,2.16,148.36,148.22,472.54846292]
[1633084972811,2.51699935,148.3,148.22,108.80845986]
[1633084973013,126.01017468,148.29,148.13,0.273]
[1633084973211,2.54650726,148.23,148.13,0.273]
[1633084973612,121.61209825,148.28,148.13,0.273]
[1633084973812,115.99805468,148.27,148.13,0.273]
[1633084974215,7.85212,148.26,148.13,0.273]
[1633084974612,12.57996241,148.26,148.13,0.273]
[1633084974814,2.49689055,148.21,148.13,0.273]
[1633084975013,2.44852585,148.19,148.13,0.273]
[1633084975215,7.85212,148.18,148.13,0.273]
[1633084975616,2.16,148.24,148.21,4.9454164]
[1633084975813,2.16,148.24,148.22,30.01676854]
[1633084976015,2.16,148.24,148.22,7.61983]
[1633084976215,4.36261937,148.41,148.22,7.61983]
[1633084976216,2.16,148.3,148.22,7.61983]
[1633084976415,2.16,148.31,148.22,7.61983]
[1633084976614,2.16,148.33,148.22,7.61983]
[1633084976816,2.16,148.33,148.23,30.00156722]
[1633084977014,2.16,148.37,148.23,30.00156722]
[1633084977414,2.16,148.4,148.23,30.00156722]
[1633084977614,2.16,148.4,148.24,7.6188]
[1633084978016,151.5157,148.43,148.29,0.0421776]
[1633084978218,115.99805468,148.42,148.29,0.0421776]
[1633084978616,115.99805468,148.42,148.37,0.0421776]
[1633084978815,154.08644752,148.43,148.37,0.0421776]
[1633084979016,146.60351431,148.42,148.37,0.0421776]
[1633084979214,115.99805468,148.41,148.37,0.0421776]
[1633084979619,115.99805468,148.42,148.37,0.0421776]
[1633084979816,2.55231066,148.39,148.21,7.1054164]
[1633084980016,2.55231066,148.39,148.22,0.02088]
[1633084980017,115.99805468,148.38,148.22,0.02088]
[1633084980215,115.99805468,148.38,148.22,28.19873693]
[1633084980615,118.57338603,148.38,148.23,0.02088]
[1633084980815,115.99805468,148.37,148.23,0.02088]
[1633084981017,76.246315,148.36,148.23,0.02088]
[1633084981217,47.831539,148.35,148.23,0.02088]
[1633084981416,153.6757,148.43,148.25,21.58517793]
[1633084981616,151.5157,148.43,148.25,23.74517793]
[1633084981817,151.5157,148.43,148.3,0.02088]
[1633084982020,72.8468,148.43,148.3,0.02088]
[1633084982216,2.16,148.53,148.32,24.18468069]
[1633084982416,2.16,148.53,148.33,0.02088]
[1633084982817,4.73502741,148.53,148.33,0.02088]
[1633084983015,52.55505002,148.53,148.33,0.02088]
[1633084983218,2.52743778,148.49,148.33,0.02088]
[1633084983416,2.45830754,148.46,148.28,0.02088]
[1633084983616,2.16,148.45,148.28,0.02088]
[1633084983815,2.16,148.45,148.17,1.46819804]
[1633084983816,2.5361129,148.42,148.25,24.01486355]
[1633084984017,4.6961129,148.42,148.23,0.02088]
[1633084984218,4.6961129,148.42,148.2,2.16]
[1633084984219,4.6961129,148.42,148.22,0.02088]
[1633084984419,2.47922059,148.37,148.22,0.02088]
[1633084984620,2.59432343,148.34,148.22,0.02088]
[1633084985217,2.16,148.36,148.22,0.02088]
[1633084985419,2.16,148.36,148.17,33.14733337]
[1633084985618,2.16,148.36,148.22,0.02088]
[1633084986017,4.59831088,148.36,148.22,0.02088]
[1633084986216,2.49866291,148.35,148.22,0.02088]
[1633084986416,2.40569233,148.3,148.22,0.02088]
[1633084986620,2.16,148.34,148.18,22.76154842]
[1633084987018,2.16,148.39,148.18,22.76154842]
[1633084987224,2.16,148.39,148.18,24.92154842]
[1633084987425,19.36214076,148.43,148.22,0.02088]
[1633084987619,19.36214076,148.43,148.23,28.87867265]
[1633084987820,17.182665,148.42,148.29,0.02088]
[1633084988021,2.16,148.41,148.29,0.02088]
[1633084988222,2.56269133,148.39,148.21,4.9454164]
[1633084988423,4.72269133,148.39,148.13,2.433]
[1633084988624,2.5072926,148.32,148.15,0.02088]
[1633084988823,2.16,148.36,148.15,0.02088]
[1633084989024,2.42624739,148.35,148.15,0.02088]
[1633084989222,2.16,148.34,148.15,0.02088]
[1633084989423,2.48601581,148.3,148.15,0.02088]
[1633084990223,2.16,148.32,148.15,0.02088]
[1633084991424,2.16,148.36,148.15,23.29982825]
[1633084991624,2.16,148.36,148.16,60.55632517]
[1633084991827,2.16,148.36,148.17,65.0]
[1633084992024,2.16,148.36,148.19,0.02088]
[1633084992224,2.16,148.36,148.18,29.58398404]
[1633084992826,0.0212976,148.39,148.19,28.0381118]
[1633084993023,0.0212976,148.39,148.2,11.28129712]
[1633084993226,2.1812976,148.46,148.26,73.0]
[1633084993424,2.16,148.46,148.27,21.47799948]
[1633084993628,2.16,148.46,148.28,0.02088]
[1633084993829,77.62003718,148.45,148.28,0.02088]
[1633084994026,77.62003718,148.45,148.27,21.47799948]
[1633084994027,75.2176,148.45,148.27,21.47799948]
[1633084994228,2.16,148.52,148.48,83.8707584]
[1633084994425,115.99805468,148.51,148.48,83.8707584]
[1633084994625,2.8e-07,148.51,148.43,32.49733337]
[1633084994827,400.84997479,148.57,148.43,32.51863097]
[1633084995030,400.84997479,148.57,148.44,2.16]
[1633084995225,400.84997479,148.57,148.45,7.6278076]
[1633084995425,400.84997479,148.57,148.46,2.1812976]
[1633084995627,400.84997479,148.57,148.47,7.6282976]
[1633084995828,400.84997479,148.57,148.49,0.0212976]
[1633084995829,22.84796684,148.56,148.49,0.0212976]
[1633084996431,22.84796684,148.56,148.46,0.0212976]
[1633084996627,22.84796684,148.56,148.42,0.0212976]
[1633084997231,22.84796684,148.56,148.39,28.82219549]
[1633084997428,2.18088,148.61,148.39,28.82219549]
[1633084997633,767.71055124,148.6,148.4,2.16]
[1633084997829,767.71055124,148.6,148.41,0.0212976]
[1633084998028,767.71055124,148.63,148.42,2.16]
[1633084998228,767.71055124,148.62,148.42,0.0212976]
[1633084998429,4.71097592,148.61,148.41,0.0212976]
[1633084998629,767.73143124,148.6,148.37,0.0212976]
[1633084998830,769.89143124,148.59,148.37,0.0212976]
[1633084999029,767.73143124,148.58,148.37,0.0212976]
[1633084999229,767.71055124,148.57,148.38,2.16]
[1633084999430,29.5487601,148.57,148.39,0.0212976]
[1633084999831,27.10139043,148.57,148.39,0.0212976]
[1633085000432,27.10139043,148.57,148.39,26.31629188]
[1633085000631,27.10139043,148.57,148.39,26.29499428]
[1633085000831,27.10139043,148.57,148.4,2.16]
[1633085001032,27.10139043,148.57,148.47,0.0212976]
[1633085001232,27.10139043,148.57,148.48,0.0212976]
[1633085001432,27.10139043,148.57,148.43,0.0212976]
[1633085001631,27.10139043,148.57,148.41,0.0212976]
[1633085001837,27.10139043,148.57,148.15,177.27628118]
[1633085001838,2.42493348,148.5,148.37,77.0]
[1633085002035,2.42493348,148.5,148.39,547.9887689]
[1633085002234,29.26139043,148.57,148.39,547.9887689]
[1633085002235,2.16,148.52,148.39,547.9887689]
[1633085002437,0.0212976,148.52,148.39,547.9887689]
[1633085002636,2.16,148.64,148.4,2.16]
[1633085002840,0.06992764,148.72,148.4,2.16]
[1633085002841,0.0212976,148.58,148.44,16.8206]
[1633085003039,767.71055124,148.57,148.48,58.0]
[1633085003237,0.0212976,148.67,148.57,22.98315293]
[1633085003437,684.21379224,148.66,148.57,22.98315293]
[1633085003637,0.09122524,148.72,148.57,22.98315293]
[1633085003638,684.21379224,148.65,148.57,22.98315293]
[1633085003838,684.21379224,148.64,148.57,84.14315293]
[1633085004039,684.21379224,148.63,148.57,84.14315293]
[1633085004238,684.21379224,148.62,148.57,84.14315293]
[1633085004440,684.21379224,148.61,148.57,84.14315293]
[1633085004638,684.21379224,148.6,148.57,81.98315293]
[1633085004840,684.21379224,148.71,148.57,81.98315293]
[1633085005238,684.21379224,148.71,148.58,2.16]
[1633085005443,684.21379224,148.71,148.58,2.18088]
[1633085005638,684.21379224,148.71,148.58,2.16]
[1633085005840,21.65177888,148.7,148.57,81.98315293]
[1633085006040,684.21379224,148.69,148.57,81.98315293]
[1633085007041,22.98315293,148.57,148.52,0.02088]
[1633085007240,22.98315293,148.57,148.5,0.02088]
[1633085007443,22.98315293,148.57,148.46,0.02088]
[1633085007640,22.98315293,148.57,148.43,2.16]
[1633085008045,22.98315293,148.57,148.44,12.23576236]
[1633085008244,22.98315293,148.57,148.45,2.16]
[1633085008441,22.98315293,148.57,148.46,2.16]
[1633085008644,22.98315293,148.57,148.4,2.16]
[1633085009242,22.98315293,148.57,148.41,12.76487775]
[1633085009444,22.98315293,148.57,148.42,2.18088]
[1633085009643,22.98315293,148.57,148.43,0.02088]
[1633085009844,22.98315293,148.57,148.44,2.16]
[1633085010043,22.98315293,148.57,148.45,0.02088]
[1633085010244,22.98315293,148.57,148.45,2.16]
[1633085010847,22.98315293,148.57,148.42,0.02088]
[1633085011046,2.55634732,148.55,148.36,2.16]
[1633085011246,2.54973107,148.5,148.36,2.16]
[1633085011445,2.57764492,148.55,148.36,2.16]
[1633085011645,26.98849465,148.49,148.31,2.16]
[1633085012045,26.98849465,148.49,148.31,34.20745245]
[1633085012447,26.98849465,148.49,148.31,2.16]
[1633085012649,2.58120126,148.45,148.29,0.02088]
[1633085012848,22.13554442,148.44,148.28,0.02088]
[1633085013048,22.13554442,148.44,148.27,370.68060785]
[1633085013249,22.13554442,148.44,148.28,0.02088]
[1633085013447,22.13554442,148.44,148.29,2.16]
[1633085013647,22.13554442,148.44,148.3,0.02088]
[1633085013847,22.13554442,148.44,148.29,2.16]
[1633085014649,22.13554442,148.44,148.27,384.03648671]
[1633085014850,0.0212976,148.43,148.27,384.03648671]
[1633085015247,0.0212976,148.43,148.28,2.16]
[1633085015447,77.79248,148.56,148.45,7.80040183]
[1633085015648,0.02088,148.54,148.45,7.80040183]
[1633085015852,22.98315293,148.57,148.45,7.80040183]
[1633085016251,73.34309635,148.77,148.74,56.31369547]
[1633085016450,78.0786,148.76,148.6,55.70785338]
[1633085016649,628.16636124,148.75,148.56,2.16]
[1633085016850,628.16636124,148.75,148.61,22.96911911]
[1633085017049,628.16636124,148.76,148.61,22.96911911]
[1633085017252,0.02088,148.77,148.61,22.96911911]
[1633085017253,628.16636124,148.75,148.61,2.16]
[1633085017450,628.16636124,148.74,148.61,2.16]
[1633085017654,4.78238378,148.91,148.61,2.16]
[1633085017655,0.02088,148.77,148.61,2.16]
[1633085017852,505.376836,148.76,148.62,25.2943424]
[1633085018053,0.02088,148.87,148.63,2.1812976]
[1633085018252,0.33,148.88,148.63,2.1812976]
[1633085018454,23.62999397,148.87,148.67,0.0212976]
[1633085018652,23.62999397,148.87,148.68,2.16]
[1633085018851,23.62999397,148.87,148.69,0.0212976]
[1633085019052,0.33,148.88,148.7,2.16]
[1633085019253,0.33,148.88,148.71,0.0212976]
[1633085019454,0.33,148.88,148.72,2.16]
[1633085019654,0.33,148.88,148.75,0.0212976]
[1633085019853,0.33,148.88,148.76,2.16]
[1633085020053,0.33,148.88,148.77,0.0212976]
[1633085020254,0.33,148.88,148.78,2.16]
[1633085020452,25.69018434,148.87,148.78,2.16]
[1633085020852,25.69018434,148.87,148.76,0.0212976]
[1633085021058,25.69018434,148.87,148.72,2.1812976]
[1633085021253,25.69018434,148.87,148.73,0.0212976]